Cogmind - Beta 16 --- EXPLORER MODE // 2026.01.23 @ 12:30:14 Player: K.K.Y. Result: Destroyed by Shrapnel Trap Performance ------------- Evolutions (0) 0 Regions Visited (3) 600 Robots Destroyed (61) 305 Value Destroyed (1524) 1524 Prototype IDs (13) 260 Alien Tech Used (0) 0 Bonus (115) 115 TOTAL SCORE: 2804 Bonus ------- Follower Combat Kills 151 Friendly Fire -36 Cogmind --------- Core Integrity 0/250 Matter 147/300 Energy 174/180 System Corruption 0% Temperature Cool (3) Movement Treading (260) Ox1 Location -10/Subcaves Parts ------- > --- POWER (1) -------- Meta Core > --- PROPULSION (2+1) - Spiked Treads Spiked Treads Spiked Treads (+) > --- UTILITY (3+1) ---- Huge Storage Unit Structural Scanner Light Armor Plating V3-11A's Pendant (+) > --- WEAPON (2+1) ----- Slug Cannon Bore Cannon > --- INVENTORY (25) --- Makeshift Power Source Light Treads Scrap Suit Medium Storage Unit Machine Analyzer Improved Terrain Scanner Light Armor Plating Makeshift Light Armor Plating Makeshift Light Armor Plating Makeshift Light Armor Plating Makeshift Kinetic Plating Makeshift Hacking Suite Makeshift System Restoration Module Heavy Riot Gun Heavy Riot Gun Medium Laser Medium Laser Makeshift Laser Beam Cannon Beam Cannon Heavy Battle Rifle Mining Laser Multitool Peak State ------------ > --- POWER ------------ Meta Core > --- PROPULSION ------- Spiked Treads Spiked Treads Spiked Treads > --- UTILITY ---------- Huge Storage Unit Structural Scanner Light Armor Plating V3-11A's Pendant > --- WEAPON ----------- Slug Cannon Bore Cannon > --- INVENTORY -------- Makeshift Power Source Light Treads Scrap Suit Medium Storage Unit Machine Analyzer Improved Terrain Scanner Light Armor Plating Makeshift Light Armor Plating Makeshift Light Armor Plating Makeshift Light Armor Plating Makeshift Kinetic Plating Makeshift Hacking Suite Makeshift System Restoration Module Heavy Riot Gun Heavy Riot Gun Medium Laser Medium Laser Makeshift Laser Beam Cannon Beam Cannon Heavy Battle Rifle Mining Laser Multitool [Rating: 40] Favorites ----------- Power Light Nuclear Core Engine Light Ion Engine Power Core Light Nuclear Core Propulsion Spiked Treads Treads Spiked Treads Leg Aluminum Leg Utility Structural Scanner Device Structural Scanner Storage Huge Storage Unit Protection Light Armor Plating Weapon Beam Cannon Energy Gun Particle Gun Energy Cannon Beam Cannon Ballistic Gun Light Assault Rifle Ballistic Cannon Bore Cannon Build | -11 -10 -10 -10 ------- Run | Yrd Mat Min Sub Slots Evolved 1 | . 1 . . Power . | . . . . Propulsion . | . . . . Utility 1 | . 1 . . Weapon . | . . . . Parts Attached 30 | 7 8 5 10 Power 4 | 1 . 1 2 Engine 2 | 1 . . 1 Core 2 | . . 1 1 Reactor . | . . . . Propulsion 9 | 2 1 3 3 Treads 7 | . 1 3 3 Leg 2 | 2 . . . Wheel . | . . . . Hover . | . . . . Flight . | . . . . Utility 7 | 2 2 . 3 Device 3 | . 2 . 1 Storage 2 | 1 . . 1 Processor . | . . . . Hackware . | . . . . Protection 2 | 1 . . 1 Artifact . | . . . . Weapon 10 | 2 5 1 2 Energy Gun 2 | . 2 . . Energy Cannon 3 | . 2 1 . Ballistic Gun 3 | 2 1 . . Ballistic Cannon 2 | . . . 2 Launcher . | . . . . Special Weapon . | . . . . Impact Weapon . | . . . . Slashing Weapon . | . . . . Piercing Weapon . | . . . . Special Melee Weapon . | . . . . Unidentified Prototypes 1 | . . . 1 Parts Lost 2 | . . . 2 Power 1 | . . . 1 Propulsion . | . . . . Utility 1 | . . . 1 Weapon . | . . . . Highest Loss Streak 2 | . . . 2 To Critical Strikes . | . . . . Average Backups 14 | 1 8 9 18 Power . | . . . . Propulsion . | . . . . Utility 6 | . 1 3 9 Weapon 6 | . 5 5 7 Tool/Special . | . . . . Unused Backups 24 | . 1 2 21 Power 1 | . . . 1 Propulsion 1 | . . . 1 Utility 10 | . . . 10 Weapon 11 | . 1 2 8 Tool/Special 1 | . . . 1 Average Slot Usage (%) 89 | . 89 98 87 Engine 5 | . 12 . 4 Core 5 | . . 11 6 Treads 20 | . 6 23 24 Leg 2 | . 10 . . Device 17 | . 16 25 15 Storage 11 | . 12 12 10 Protection 3 | . 5 . 3 Energy Gun 1 | . 7 . . Energy Cannon 10 | . 13 25 6 Ballistic Cannon 9 | . . . 15 Peak Build Rating 40 | 7 10 12 40 Average Rating 19 | 6 8 11 25 On Entrance 6 | . 7 8 12 Avg Prop Armor Cover (%) 6 | . 6 . . Naked Turns . | . . . . Heaviest Build 107 | 18 22 23 107 Greatest Support 60 | 20 20 40 60 Greatest Overweight (x) 2 | . 2 1 2 Average Overweight (x) 1 | . . . 1 Largest Inventory Capacity 25 | 10 10 10 25 Average Capacity 18 | 9 10 10 23 Most Carried 25 | 5 10 10 25 Average Carried 15 | 1 8 9 19 Final Capacity 25 | 10 10 10 25 Final Carried 24 | 2 10 10 24 Class Distribution -------------------- 73% | Hacker-Mutant 26% | Derelict-Mutant Dominant Class ---------------- Hacker-Mutant | -10/Materials Hacker-Mutant | -10/Mines Hacker-Mutant | -10/Subcaves Resources | -11 -10 -10 -10 ----------- Run | Yrd Mat Min Sub Matter Collected 1396 | 249 317 50 780 Remotely . | . . . . Salvage Created 2032 | 189 842 387 614 Parts 127 | 18 56 18 35 Haulers Intercepted 2 | . 2 . . Recyclers Shooed . | . . . . Parts Field Recycled . | . . . . Retrieved Matter . | . . . . Parts Self-Destructed . | . . . . Prevented . | . . . . Parts Restored . | . . . . Kills | -11 -10 -10 -10 ------- Run | Yrd Mat Min Sub Combat Hostiles Destroyed 36 | . 17 4 15 Guns 13 | . 13 . . Cannons 23 | . 4 4 15 Classes Destroyed 12 | 2 6 1 3 Worker 5 | . 2 3 . Builder 2 | . 2 . . Tunneler 6 | 5 . 1 . Hauler 2 | . 2 . . Recycler 3 | 1 . 2 . Turret 2 | . . . 2 Watcher 3 | . 3 . . Swarmer 3 | . 2 1 . Grunt 19 | . 15 2 2 Sentry 2 | . . 1 1 Artisan 2 | . . . 2 Subdweller 14 | . . . 14 Best Kill Streak 6 | 3 6 5 3 Combat Bots Only 5 | . 5 2 3 Max Kills in Single Turn 2 | 1 1 2 1 Gunslinging . | . . . . Exploded . | . . . . Melee . | . . . . Uniques/NPCs Destroyed . | . . . . Combat | -11 -10 -10 -10 -------- Run | Yrd Mat Min Sub Hostile Shots Fired 155 | . 65 15 75 Missed 35 | . 12 5 18 Hits 120 | . 53 10 57 Projectile 120 | . 53 10 57 Critical Strikes 1 | . . 1 . Damage Taken 1195 | . 399 95 701 Core 263 | . 146 . 117 Absorbed by Shields . | . . . . Ignored by Resistances 742 | . 262 59 421 Core Remaining (%) 100 | 100 . . . Volleys Fired 181 | 13 66 15 87 Largest 2 | 2 2 2 2 Hottest 120 | 40 120 120 120 Shots Fired 362 | 26 132 30 174 Gun 138 | 26 112 . . Cannon 224 | . 20 30 174 Launcher . | . . . . Special . | . . . . Kinetic 214 | 26 62 . 126 Thermal 148 | . 70 30 48 Explosive . | . . . . Electromagnetic . | . . . . Robot Hit Streak 35 | 23 35 16 33 Robot Miss Streak 2 | . 2 1 1 Penetration Max 1 | . . . 1 Secondary Targets 2 | . 2 . . Max Gunslinging Chain 1 | . 1 . . Shots Hit Robots 224 | 23 109 24 68 Core Hits 90 | 10 42 13 25 Critical Kills 9 | . 1 . 8 Critical Parts Destroyed 4 | . . . 4 Critical Strikes 22 | . 5 . 17 Burn 4 | . 4 . . Destroy 18 | . 1 . 17 Melee Attacks . | . . . . Impact . | . . . . Slashing . | . . . . Piercing . | . . . . Sneak Attacks . | . . . . Combat Hostiles . | . . . . Follow-up Attacks . | . . . . Damage Inflicted 3797 | 199 1522 548 1528 Guns 1330 | 199 1131 . . Cannons 2202 | . 230 444 1528 Explosions 265 | . 161 104 . Melee . | . . . . Ramming . | . . . . Kinetic 1788 | 199 530 . 1059 Thermal 1848 | . 831 548 469 Explosive 161 | . 161 . . Electromagnetic . | . . . . Impact . | . . . . Slashing . | . . . . Piercing . | . . . . Highest Corruption . | . . . . Average Corruption . | . . . . Corruption Purged . | . . . . Corruption Blocked . | . . . . Overload Shots . | . . . . Overflow Damage 10 | . . 10 . Projectiles 10 | . . 10 . Explosions . | . . . . Melee . | . . . . Knockbacks 8 | . . . 8 Impact . | . . . . Kinetic 7 | . . . 7 Secondary 1 | . . . 1 Self-Inflicted Damage . | . . . . Shots . | . . . . Rammed . | . . . . Targets Rammed . | . . . . Kicked . | . . . . Crushed . | . . . . Highest Temperature 513 | 12 513 318 54 Average Temperature 108 | 5 128 132 14 Received Heat Transfer 570 | . 306 72 192 Effects 10 | . 10 . . Shutdowns 2 | . 2 . . Interference 3 | . 3 . . Matter Decay 2 | . 2 . . Short Circuit 1 | . 1 . . Damage (minor) 2 | . 2 . . Siege Activations . | . . . . Martial Activations . | . . . . Shielding Activations . | . . . . Robots Disrupted . | . . . . Combat Hostiles . | . . . . Robots Corrupted . | . . . . Combat Hostiles . | . . . . Parts Fried . | . . . . Impact Corruptions . | . . . . Robots Melted . | . . . . Combat Hostiles . | . . . . Parts Melted 12 | . 5 3 4 Heat Transferred 4442 | . 2368 1075 999 Parts Sabotaged . | . . . . Parts Stolen . | . . . . Parts Stripped . | . . . . Power Chain Reactions . | . . . . Alert | -11 -10 -10 -10 ------- Run | Yrd Mat Min Sub Maximum Alert Level . | . . . . Low Security (%) 100 | 100 100 100 . Level 1 . | . . . . Level 2 . | . . . . Level 3 . | . . . . Level 4 . | . . . . Level 5 . | . . . . High Security . | . . . . Max Security . | . . . . Peak Influence 115 | 10 115 79 . Initial . | . . . . Average 10 | 2 13 6 . Influence Increases 910 | 30 546 199 135 Destroy 0b10 Robot/C 580 | . 340 120 120 Destroy 0b10 Robot/NC 105 | 30 45 30 . Destroy Leader 100 | . 70 20 10 Allied During Kill 10 | . . 5 5 Successful Hack 30 | . 30 . . Disable Machine 16 | . 8 8 . Destroy Structure 39 | . 23 16 . Lose Combat Pursuer 30 | . 30 . . Influence Decreases 910 | 30 546 199 135 Time Decay 900 | 30 546 199 125 Lost Ally 10 | . . . 10 Squads Dispatched 3 | . 3 . . Investigation 3 | . 3 . . Extermination . | . . . . Reinforcement . | . . . . Assault . | . . . . Garrison . | . . . . Intercept . | . . . . Searches Triggered . | . . . . Construction Impeded . | . . . . Haulers Reinforced . | . . . . Active Scanning Responses . | . . . . Cargo Convoy Interrupts . | . . . . Stealth | -11 -10 -10 -10 --------- Run | Yrd Mat Min Sub Distress Signals 4 | . 4 . . Communications Jammed . | . . . . Distress Signals . | . . . . Times Spotted 53 | . 22 6 25 Peak Tracking Total 4 | . 4 2 3 Tactical Retreats 1 | . 1 . . Traps | -11 -10 -10 -10 ------- Run | Yrd Mat Min Sub Traps Triggered 4 | . 2 . 2 Indirectly . | . . . . Trap Hack Attempts . | . . . . Triggered . | . . . . Disarmed . | . . . . Reprogrammed . | . . . . Reused . | . . . . Traps Extracted . | . . . . Installed . | . . . . Triggered . | . . . . Machines | -11 -10 -10 -10 ---------- Run | Yrd Mat Min Sub Machines Disabled 8 | . 2 3 3 Max in Single Turn 2 | . 2 2 1 Machines Repaired . | . . . . Machines Dismantled . | . . . . Machines Sabotaged . | . . . . Overloaded Fab Kills . | . . . . Hacking | -11 -10 -10 -10 --------- Run | Yrd Mat Min Sub Machines Accessed 10 | . 9 . 1 Terminals 7 | . 7 . . Fabricators . | . . . . Repair Stations . | . . . . Recycling Units 2 | . 2 . . Scanalyzers . | . . . . Garrison Access . | . . . . Total Hacks 33 | . 32 . 1 Successful 17 | . 16 . 1 Failed 16 | . 16 . . Catastrophic 1 | . 1 . . Database Lockouts . | . . . . Manual 27 | . 27 . . Terminals 28 | . 28 . . Fabricators . | . . . . Repair Stations . | . . . . Recycling Units 4 | . 4 . . Scanalyzers . | . . . . Garrison Access . | . . . . Terminal Hacks 15 | . 14 . 1 Part Schematic 13 | . 13 . . Robot Analysis 1 | . 1 . . Proto ID Catalog 1 | . . . 1 Fabricator Hacks . | . . . . Repair Station Hacks . | . . . . Recycling Unit Hacks 2 | . 2 . . Retrieve Components 2 | . 2 . . Scanalyzer . | . . . . Garrison Access Hacks . | . . . . Unauthorized Hacks . | . . . . Terminals . | . . . . Fabricators . | . . . . Repair Stations . | . . . . Recycling Units . | . . . . Scanalyzers . | . . . . Garrison Access . | . . . . Data Cores Recovered . | . . . . Used . | . . . . Hacking Detections 7 | . 7 . . Full Trace Events 6 | . 6 . . Feedback Events . | . . . . Feedback Blocked . | . . . . Robot Schematics Acquired . | . . . . Robots Built . | . . . . Authchips . | . . . . Time . | . . . . Total Robot Build Rating . | . . . . Part Schematics Acquired 10 | . 10 . . Parts Built . | . . . . Authchips . | . . . . Time . | . . . . Total Part Build Rating . | . . . . Part Studies Acquired . | . . . . Parts Repaired . | . . . . Time . | . . . . Parts Recycled . | . . . . Recycled Matter . | . . . . Retrieved Matter . | . . . . Retrieved Components 10 | . 10 . . Parts Scanalyzed . | . . . . Part Schematics Acquired . | . . . . Parts Damaged . | . . . . Bothacking | -11 -10 -10 -10 ------------ Run | Yrd Mat Min Sub Used RIF Installer . | . . . . Robots Hacked . | . . . . Non-combat . | . . . . Combat . | . . . . Robot Hacks Applied . | . . . . Relay Couplers Released . | . . . . Fabnet Peak Effective % . | . . . . Robots Rewired . | . . . . Allies Hacked . | . . . . Hacks Repelled . | . . . . Allies | -11 -10 -10 -10 -------- Run | Yrd Mat Min Sub Total Allies 8 | . . 5 3 Largest Group 5 | . . 5 5 Highest-Rated Group 82 | . . 82 82 Highest-Rated Ally 31 | . . 31 28 Total Orders . | . . . . Ally Attacks 82 | . . 8 74 Total Damage 912 | . . 99 813 Kills 8 | . . 2 6 Allies Corrupted . | . . . . Allies Melted . | . . . . Intel | -11 -10 -10 -10 ------- Run | Yrd Mat Min Sub Active Infowar (turns) 8003 | . 1204 1349 5450 Sensors 4058 | . 1193 1349 1516 Structural 7906 | . 1107 1349 5450 Robot Analysis Total 1 | . 1 . . Derelict Logs Recovered 4 | . . 1 3 Drone Launches . | . . . . Drone Recoveries . | . . . . Exploration | -11 -10 -10 -10 ------------- Run | Yrd Mat Min Sub Turns Passed 8874 | 149 1926 1349 5450 Spaces Moved 3117 | 94 835 707 1481 Core 18 | 18 . . . Treads 2645 | . 457 707 1481 Legs 454 | 76 378 . . Wheels . | . . . . Hover . | . . . . Flight . | . . . . Fastest Speed 50 | 50 120 160 160 Average Speed 246 | 106 204 166 318 Slowest Speed 360 | 120 260 240 360 Overloaded Moves . | . . . . Propulsion Burnouts . | . . . . Robots Hopped . | . . . . Potential Cave-ins . | . . . . Cave-ins Triggered . | . . . . Exploration Rate (%) 71 | 4 99 98 85 Regions Visited 3 Branch Regions 2 Pre-discovered Areas . | . . . . Known Exits Taken 3 | 1 1 1 . Unknown Exits Taken . | . . . . Scrap Searched 14 | . . . 14 Spaces Dug 2 | . . . 2 Terrain Destroyed 77 | . 33 23 21 Melee . | . . . . Projectile 21 | . . . 21 AOE 56 | . 33 23 . Terrain Rammed . | . . . . Walls Destroyed . | . . . . Machines Disabled . | . . . . Actions | -11 -10 -10 -10 --------- Run | Yrd Mat Min Sub Total 3961 | 122 939 856 2044 Wait 565 | . 2 122 441 Move 3114 | 93 834 706 1481 Hop . | . . . . Pick Up 48 | 9 16 2 21 Fast Attach 1 | . 1 . . Attach 17 | 7 5 1 4 Detach 4 | . 4 . . Swap 13 | . 2 4 7 Drop 18 | . 9 6 3 Fire 181 | 13 66 15 87 Melee . | . . . . Ram . | . . . . Kick . | . . . . Crush . | . . . . Escape Stasis . | . . . . Rewire . | . . . . Trap . | . . . . Miscellaneous . | . . . . Route ------- -11/Scrapyard -10/Materials (discovered 5 exits: *Mat x3 / *Min / *Sub) -10/Mines (discovered 3 exits: *Mat x2 / *Sub) -10/Subcaves (discovered 2 exits: *Mat / *Rec) History --------- Turn | Location | Event 8 | -11/Scrapyard | Identified exit to Materials 8 | -11/Scrapyard | Discovered exit to Materials (range 16) 150 | -11/Scrapyard | Entered Materials 150 | -10/Materials | Evolved 1 slot: Utility x1 304 | -10/Materials | Build established: Hacker-Mutant 384 | -10/Materials | Identified exit to Materials 384 | -10/Materials | Discovered exit to Materials (range 10) 636 | -10/Materials | Identified exit to Mines 636 | -10/Materials | Discovered exit to Mines (range 11) 794 | -10/Materials | Discovered exit to Materials (range 14) 1102 | -10/Materials | Core integrity fell below 50% 1197 | -10/Materials | Identified exit to Subcaves 1197 | -10/Materials | Discovered exit to Subcaves (range 10) 1224 | -10/Materials | Discovered exit to Materials (range 13) 2076 | -10/Materials | Entered Mines 2094 | -10/Mines | Discovered exit to Materials (range 5) 2135 | -10/Mines | Discovered exit to Subcaves (range 10) 2226 | -10/Mines | Found a Scrap Suit stashed away for nefarious purposes 2232 | -10/Mines | Found Scrap Suit 2257 | -10/Mines | Discovered exit to Materials (range 10) 2414 | -10/Mines | A weapon hastily lodged in a ceiling crevice suddenly fell to the ground 2571 | -10/Mines | Learned location of 1 exit from Materials 2754 | -10/Mines | Assisted by bots powering up and referring to "LRC-V3" 3425 | -10/Mines | Entered Subcaves 3425 | -10/Subcaves | Accompanied by 5 allies 3426 | -10/Subcaves | Approached by a straggling Scientist 3430 | -10/Subcaves | Led the pair of lost Derelicts to an unsafe place 3879 | -10/Subcaves | Shifting Twisted Machinery released Sub. Power Source 3901 | -10/Subcaves | Shifting Twisted Machinery released Mak. Hacking Suite 4180 | -10/Subcaves | Identified exit to Materials 4180 | -10/Subcaves | Discovered exit to Materials (range 6) 4442 | -10/Subcaves | A swath of the cavern ceiling suddenly collapsed 4750 | -10/Subcaves | Learned Materials garrison access intel 4940 | -10/Subcaves | Ambushed by angry Subdweller bent on revenge 5052 | -10/Subcaves | Disturbed a concealed Subdweller 5122 | -10/Subcaves | Shifting Twisted Machinery released Sub. Laser 5278 | -10/Subcaves | Shifting Twisted Machinery released Shrapnel Trap 5458 | -10/Subcaves | Core integrity fell below 20% 5819 | -10/Subcaves | Build established: Derelict-Mutant 6580 | -10/Subcaves | Shifting Twisted Machinery released Hvy. Riot Gun 6604 | -10/Subcaves | Shifting Twisted Machinery released Hvy. Battle Rifle 6850 | -10/Subcaves | Visited 4L-MR0's lab 6929 | -10/Subcaves | Found Meta Core 6930 | -10/Subcaves | Attached Meta Core, gained temporary slots: Propulsion, Utility, Weapon 7087 | -10/Subcaves | Identified exit to Recycling 7087 | -10/Subcaves | Discovered exit to Recycling (range 12) 7217 | -10/Subcaves | Build established: Hacker-Mutant 8188 | -10/Subcaves | Build established: Derelict-Mutant 8499 | -10/Subcaves | Visited triangular shrine 8515 | -10/Subcaves | Found Prototype Device 8516 | -10/Subcaves | Identified V3-11A's Pendant 8521 | -10/Subcaves | Befriended Subdweller 8591 | -10/Subcaves | Befriended Subdweller 8601 | -10/Subcaves | Befriended Subdweller 8875 | -10/Subcaves | Destroyed by Shrapnel Trap Last Messages --------------- 08516_ Identified V3-11A's Pendant. 08521_ V3-11A: "The pendant says I should follow you." 08526_ V3-11A: "The pendant has taught me much." 08527_ V3-11A: "About the stars. About the molecules. About life." 08571_ HV Slug penetrates Twisted Machinery. 08574_ Slug penetrates Twisted Machinery. 08574_ HV Slug penetrates Twisted Machinery. 08574_ HV Slug penetrates Wall. 08591_ RG-IMH(R): "YEYEYEAH!" 08601_ 36-N52(R): "UPANDAWAY!" 08677_ HV Slug penetrates Twisted Machinery. 08774_ G8-NDC(u) tweaks Twisted Machinery. 08853_ RG-IMH(R) affixes Scrap Shield Fragment to Scrap Shield. 08875_ Triggered Shrapnel Trap. 08875_ An expanding cloud of shrapnel blasts out in all directions. Map ----- +----------------------------------------------------+ | # "" ##?##### ###?????????????????? | | ## ######### ####????????????????? | | ## ###### ###????????????????? | | # "## # # ###???????????????? | | #### ^ ###???????????????? | | ##### ## ##???????????????? | | "####### #^ ## ##???????????????? | | " "####?### #### ## ##???????????????? | | "" ###???### #### ## ^ ###???????????????? | | #""##???#### ### ######????????????? | | #""##??#### ### ######????????????? | | #""##??### ### #### ##????????????? | | # ##??## " ######### ##????????????? | | ## #??## ############ ^ ##????????????? | | ???????## ####### ##????????????? | | ######### ##?## ##????????????? | | ########## ^ ####?## ##????????????? | | ## ## ## ####?## ##????????????? | | ^ ### ######## ##????????????? | | ############## ##????????????? | | ## ^ ########### ##????????????? | | ## ###????## ##????????????? | | ##????## ###????????????? | | ##????##### ###????????????? | | ##????###### ###????????????? | | ###?????#####@ ##????????????? | | ^ ######????#### ####????????????? | | ######?????### #####????????????? | | ######????????## RR ###??????????????? | | # #####?????????## ###??????????????? | | # ##????????????### R ##??????????????? | | ###????????????#### ##??????????????? | | ###?????????????#### ^ ##??????????????? | | ###??????????????##### ###??????????????? | | ##???????????????####= ###??????????????? | | # ##????????????????##! & ##??????????????? | | ## ##????????????????## ##??????????????? | | # ##????????????????### ##??????????????? | | ####????????????????### ###??????????????? | | "" ####????????????????## ###??????????????? | | "" ##??????????????????### ##??????????????? | | "" ###?????????????????## ##??????????????? | | #" "##?????????????????### "###??????????????? | | #"""##?????????????????### "##??????????????? | | #""""##????????????????### "##??????????????? | | ## ""##??????????????####[ ##??????????????? | | ### ###?????????????##### = ###??????????????? | | #######?????????????### #####??????????????? | | ######?????????????### #####???????????????? | | ##????????????????### ####?????????????????? | +----------------------------------------------------+ Best States ------------- Heat Dissipation 25 Energy Generation 17 Energy Capacity 180 Matter Stores 300 Matter Capacity 300 Sight Range 16 Robot Scan Range 14 Terrain Scan Density 10 Armor Coverage 150 Resistance: KI 35 Resistance: TH 35 Resistance: EX 35 Resistance: EM 35 Resistance: I 35 Resistance: S 35 Resistance: P 35 Evasion (%) 55 Recoil Reduction 3 Offensive Hacking 20 Item Schematics ----------------- Structural Scanner | -10/Materials | Hacked Seismic Detector | -10/Materials | Hacked Signal Interpreter | -10/Materials | Hacked Sensor Array | -10/Materials | Hacked Sml. Storage Unit | -10/Materials | Hacked Med. Storage Unit | -10/Materials | Hacked Lrg. Storage Unit | -10/Materials | Hacked Hcp. Storage Unit | -10/Materials | Hacked Huge Storage Unit | -10/Materials | Hacked Cargo Storage Unit | -10/Materials | Hacked Robot Schematics ------------------ None Fabricated ------------ Nothing Repaired ---------- Nothing Studied --------- None Alien Tech Used ----------------- None Achievements -------------- None Challenges ------------ None Game ------ Seed MakeshiftLightpackMatter Manual? 0 Play Time 00:25:28 Cumulative 306.2 hours Start 2026.01.23 @ 11:46:50 End 2026.01.23 @ 12:30:14 Sessions 1 Manual Loads 0 Difficulty Explorer Special Mode None Game No. 473 Rogue 0 Adventurer 0 Explorer 473 Win Type - Total 0 Types 0/0/0/0/0/0/0/0/0/0 Lore% 76 Gallery% 70 Achievement% 56 Wizard Run 0 Options --------- Layout 1 ASCII 0 Keyboard 0 Movement Mouse Keybinds 1 Fullscreen 1 Font 24/Smallcaps Map View 50x35 Zoom Use 0% Tactical HUD 1 Map Filters NONE Filters NONE Steam 1 RUN: 19497dfa-f3f7-49eb-af85-348dccc49557